bitfinex/quotes_SOLUSD_20230104
["timestamp","ask_amount","ask_price","bid_price","bid_amount"]
[1672844442550,6.41968907,13.459,13.45,30.0]
[1672844442761,6.41968907,13.459,13.451,55.81]
[1672844443165,6.41968907,13.459,13.45,30.0]
[1672844443371,6.41968907,13.459,13.452,30.0]
[1672844443586,15.84,13.47,13.453,55.8]
[1672844443808,10.62116592,13.468,13.453,55.8]
[1672844444228,10.62116592,13.468,13.454,3.00810198]
[1672844444446,10.62116592,13.468,13.455,55.79]
[1672844444849,10.62116592,13.468,13.454,33.00810198]
[1672844445060,15.69,13.46,13.454,3.00810198]
[1672844445372,7.75325325,13.459,13.454,3.00810198]
[1672844445814,10.62116592,13.459,13.454,3.00810198]
[1672844446547,55.78,13.458,13.454,3.00810198]
[1672844446743,96.39116592,13.459,13.454,3.00810198]
[1672844446957,10.62116592,13.457,13.454,3.00810198]
[1672844448126,10.62116592,13.457,13.454,0.00810198]
[1672844448330,85.79,13.456,13.441,47.0670313]
[1672844448851,7.74357153,13.455,13.441,47.0670313]
[1672844449797,55.8,13.454,13.441,47.0670313]
[1672844450199,30.0,13.452,13.446,32.26145869]
[1672844450628,7.74357153,13.451,13.446,32.26145869]
[1672844453775,30.0,13.45,13.446,32.26145869]
[1672844454189,10.62116592,13.449,13.446,32.26145869]
[1672844455686,66.44116592,13.449,13.446,32.26145869]
[1672844455903,10.62116592,13.449,13.446,32.26145869]
[1672844456211,10.62116592,13.448,13.446,32.26145869]
[1672844460649,78.77,13.46,13.447,30.0]
[1672844460864,15.73,13.46,13.447,30.0]
[1672844461910,457.7817144,13.534,13.464,137.30972357]
[1672844462223,457.7817144,13.534,13.46,38.89678354]
[1672844462224,78.68,13.49,13.466,38.47743675]
[1672844462431,15.7,13.49,13.469,399.2]
[1672844462644,15.84,13.5,13.47,55.73]
[1672844462958,15.63,13.49,13.472,38.47743675]
[1672844463166,15.63,13.49,13.474,30.0]
[1672844463588,78.71,13.49,13.475,55.71]
[1672844463803,78.34,13.49,13.474,85.71]
[1672844463989,15.71,13.49,13.474,85.71]
[1672844464204,15.64,13.51,13.475,857.3]
[1672844464421,3.008102,13.489,13.479,399.2]
[1672844464851,3.008102,13.489,13.48,827.3]
[1672844465164,43.48,13.508,13.482,30.0]
[1672844465359,43.48,13.508,13.483,55.68]
[1672844465564,43.48,13.509,13.484,827.3]
[1672844465780,15.64,13.51,13.485,55.67]
[1672844465986,43.48,13.509,13.486,30.0]
[1672844466202,15.71,13.5,13.487,55.66]
[1672844466424,15.71,13.5,13.488,30.0]
[1672844466620,30.0,13.508,13.488,30.0]
[1672844466830,15.71,13.5,13.488,30.0]
[1672844467467,15.71,13.5,13.488,429.2]
[1672844467892,43.48,13.509,13.489,55.65]
[1672844468107,43.48,13.509,13.49,30.0]
[1672844469473,15.71,13.5,13.49,30.0]
[1672844470525,15.71,13.5,13.491,55.64]
[1672844470747,43.49,13.509,13.491,882.94]
[1672844470961,30.0,13.508,13.489,30.0]
[1672844471157,30.0,13.508,13.48,30.0]
[1672844471158,78.6,13.5,13.48,30.0]
[1672844471380,78.6,13.5,13.481,827.3]
[1672844471381,78.58,13.49,13.481,827.3]
[1672844471577,78.58,13.49,13.482,30.0]
[1672844471784,15.71,13.49,13.482,30.0]
[1672844472117,15.71,13.49,13.483,30.0]
[1672844472757,78.58,13.49,13.483,30.0]
[1672844474422,78.58,13.49,13.481,827.3]
[1672844474423,15.71,13.49,13.481,827.3]
[1672844474623,78.26,13.49,13.481,827.3]
[1672844476639,235.45,13.49,13.481,827.3]
[1672844476949,30.0,13.489,13.481,827.3]
[1672844477163,73.5,13.489,13.481,827.3]
[1672844477348,73.5,13.489,13.461,55.77]
[1672844477564,78.1,13.48,13.461,55.77]
[1672844478614,78.1,13.48,13.471,30.0]
[1672844478826,78.1,13.48,13.472,55.72]
[1672844479039,15.58,13.48,13.471,30.0]
[1672844479459,15.58,13.48,13.47,55.73]
[1672844479669,78.38,13.48,13.461,55.77]
[1672844479888,30.0,13.479,13.461,55.77]
[1672844480411,15.63,13.48,13.461,55.77]
[1672844480617,30.0,13.488,13.47,55.73]
[1672844480827,30.0,13.488,13.471,30.0]
[1672844481027,30.0,13.496,13.472,55.72]
[1672844481467,30.0,13.496,13.473,30.0]
[1672844481653,30.0,13.496,13.474,55.71]
[1672844481867,15.71,13.49,13.474,55.71]
[1672844482090,78.58,13.49,13.474,55.71]
[1672844482303,78.58,13.49,13.473,30.0]
[1672844482516,15.71,13.49,13.474,55.71]
[1672844482920,15.71,13.49,13.475,30.0]
[1672844483131,15.71,13.49,13.476,55.7]
[1672844483560,15.71,13.49,13.477,30.0]
[1672844484292,78.55,13.49,13.476,55.7]
[1672844484510,78.55,13.49,13.475,30.0]
[1672844484722,15.71,13.49,13.477,30.0]
[1672844485137,15.71,13.49,13.478,55.7]
[1672844485878,15.71,13.49,13.479,30.0]
[1672844486088,73.48,13.499,13.48,55.69]
[1672844486618,78.58,13.5,13.481,30.0]
[1672844486926,78.58,13.5,13.482,55.68]
[1672844487340,78.58,13.5,13.482,319.38]
[1672844487540,15.74,13.5,13.483,30.0]
[1672844487753,15.74,13.5,13.485,30.0]
[1672844487963,15.71,13.5,13.486,55.66]
[1672844488383,15.71,13.5,13.485,30.0]
[1672844488802,43.48,13.505,13.485,30.0]
[1672844489013,78.85,13.51,13.486,55.66]
[1672844489242,78.85,13.51,13.488,263.7]
[1672844489461,78.85,13.51,13.489,55.65]
[1672844489855,78.85,13.51,13.49,30.0]
[1672844490929,78.85,13.51,13.491,55.64]
[1672844491126,15.72,13.51,13.491,55.64]
[1672844491537,15.72,13.51,13.491,165.5039]
[1672844491752,15.72,13.51,13.492,30.0]
[1672844491961,78.39,13.52,13.493,55.63]
[1672844492179,43.48,13.518,13.497,263.7]
[1672844492385,78.58,13.52,13.498,55.61]
[1672844492596,78.58,13.52,13.497,263.7]
[1672844492597,15.67,13.51,13.497,263.7]
[1672844492938,78.67,13.51,13.498,30.0]
[1672844494291,15.87,13.51,13.498,30.0]
[1672844494482,15.87,13.51,13.497,263.7]
[1672844494816,15.87,13.51,13.498,30.0]
[1672844495016,43.49,13.515,13.498,30.0]
[1672844495222,15.55,13.51,13.498,30.0]
[1672844495639,43.49,13.515,13.498,30.0]
[1672844495850,15.71,13.51,13.498,30.0]
[1672844496487,15.71,13.51,13.498,85.61]
[1672844497126,15.71,13.51,13.497,263.7]
[1672844497432,15.71,13.51,13.498,30.0]
[1672844497647,15.55,13.51,13.492,85.64]
[1672844497859,78.39,13.51,13.492,85.64]
[1672844498049,78.5,13.51,13.492,85.64]
[1672844498797,78.5,13.51,13.492,349.34]
[1672844498798,30.0,13.509,13.492,349.34]
[1672844499214,15.71,13.5,13.492,263.7]
[1672844499424,78.69,13.5,13.492,263.7]
[1672844500167,15.72,13.5,13.492,263.7]
[1672844501435,15.72,13.5,13.491,109.8639]
[1672844501641,78.56,13.5,13.491,109.8639]
[1672844502377,78.56,13.5,13.491,34.33246875]
[1672844502791,30.0,13.499,13.487,263.7]
[1672844506581,30.0,13.499,13.487,185.4140625]
[1672844506897,30.0,13.499,13.478,76.9548735]
[1672844506898,43.51,13.498,13.477,357.87743675]
[1672844507107,43.51,13.498,13.477,302.17743675]
[1672844507108,78.6,13.49,13.477,302.17743675]
[1672844507419,78.6,13.49,13.477,263.7]
[1672844507634,30.0,13.489,13.477,263.7]
[1672844508776,30.0,13.489,13.477,319.4]
[1672844509087,30.0,13.489,13.477,357.87743675]
[1672844509298,30.0,13.489,13.477,302.17743675]
[1672844509738,30.0,13.489,13.477,263.7]
[1672844510776,78.47,13.49,13.474,263.7]
[1672844510981,78.47,13.49,13.475,94.18743675]
[1672844511412,15.74,13.49,13.476,30.0]
[1672844511623,15.74,13.49,13.477,55.7]
[1672844511938,15.74,13.49,13.478,30.0]
[1672844512155,15.74,13.49,13.479,55.69]
[1672844512555,62.91,13.5,13.48,30.0]
[1672844512764,62.91,13.5,13.481,319.38]
[1672844512765,15.87,13.5,13.481,319.38]
[1672844512988,15.87,13.5,13.482,38.47743675]
[1672844513205,15.87,13.5,13.486,38.47743675]
[1672844513404,15.87,13.5,13.488,30.0]
[1672844513620,78.84,13.51,13.489,55.65]
[1672844513832,78.84,13.51,13.49,30.0]
[1672844514172,78.84,13.51,13.491,55.64]
[1672844514480,78.84,13.51,13.492,30.0]
[1672844514674,78.84,13.51,13.493,55.63]
[1672844514886,15.64,13.5,13.493,55.63]
[1672844515844,78.53,13.5,13.49,55.65]
[1672844516033,78.53,13.5,13.489,55.65]
[1672844516245,78.53,13.5,13.487,55.66]
[1672844518474,78.53,13.5,13.481,55.68]
[1672844518475,30.0,13.499,13.481,55.68]
[1672844518663,78.34,13.49,13.478,55.7]
[1672844519401,15.71,13.49,13.479,30.0]
[1672844519614,78.6,13.5,13.479,30.0]
[1672844519829,78.6,13.5,13.481,30.0]
[1672844520032,78.6,13.5,13.482,55.68]
[1672844520241,78.6,13.5,13.483,30.0]
[1672844520472,15.76,13.5,13.485,30.0]
[1672844520778,85.58,13.507,13.486,55.66]
[1672844520988,30.0,13.507,13.486,55.66]
[1672844521395,30.0,13.507,13.487,30.0]
[1672844521608,30.0,13.507,13.488,55.65]
[1672844522453,30.0,13.507,13.489,30.0]
[1672844522657,30.0,13.507,13.49,55.65]
[1672844523388,30.0,13.507,13.491,30.0]
[1672844523715,15.6,13.51,13.492,55.64]
[1672844523917,45.87,13.52,13.493,30.0]
[1672844524135,45.72,13.52,13.495,263.7]
[1672844524332,45.72,13.52,13.497,30.0]
[1672844524548,85.53,13.518,13.498,55.61]
[1672844524762,30.0,13.518,13.498,55.61]
[1672844525390,30.0,13.518,13.499,30.0]
[1672844525603,30.0,13.518,13.5,55.61]
[1672844525818,30.0,13.518,13.501,30.0]
[1672844526034,30.0,13.518,13.502,55.6]
[1672844526346,55.51,13.522,13.502,55.6]
[1672844526558,55.49,13.528,13.503,30.0]
[1672844526749,55.49,13.528,13.504,55.59]
[1672844526960,55.51,13.524,13.504,55.59]
[1672844527397,30.0,13.523,13.503,30.0]
[1672844527807,30.0,13.523,13.505,30.0]
[1672844528575,30.0,13.523,13.504,55.59]
[1672844529103,15.55,13.52,13.504,55.59]
[1672844529623,30.0,13.523,13.505,30.0]
[1672844530452,30.0,13.523,13.506,55.58]
[1672844530764,55.49,13.528,13.507,30.0]
[1672844530983,30.0,13.529,13.508,55.57]
[1672844531180,55.46,13.536,13.508,55.57]
[1672844531391,55.46,13.536,13.509,30.0]
[1672844531603,30.0,13.535,13.51,55.56]
[1672844531829,55.47,13.534,13.514,263.7]
[1672844532015,55.45,13.538,13.515,172.1996]
[1672844532442,15.71,13.54,13.516,30.0]
[1672844532652,55.45,13.538,13.516,30.0]
[1672844533100,15.55,13.53,13.516,30.0]
[1672844534037,78.24,13.53,13.516,30.0]
[1672844534668,78.24,13.53,13.515,571.3996]
[1672844534863,78.24,13.53,13.514,263.7]
[1672844535075,15.67,13.52,13.514,263.7]
[1672844535521,30.0,13.528,13.514,263.7]
[1672844535702,55.49,13.527,13.514,263.7]
[1672844535912,30.0,13.528,13.514,263.7]
[1672844536228,15.67,13.52,13.514,263.7]
[1672844537715,15.67,13.52,13.509,30.0]
[1672844538531,55.49,13.529,13.51,55.56]
[1672844538740,78.4,13.53,13.51,55.56]
[1672844539165,15.56,13.53,13.511,30.0]
[1672844539377,15.56,13.53,13.512,55.56]
[1672844540116,55.45,13.537,13.513,30.0]
[1672844540330,30.0,13.539,13.516,263.7]
[1672844540549,30.0,13.539,13.517,169.5133]
[1672844540868,30.0,13.539,13.518,30.0]
[1672844541405,30.0,13.539,13.519,55.53]
[1672844541707,55.45,13.538,13.519,55.53]
[1672844542027,55.45,13.538,13.518,30.0]
[1672844542219,30.0,13.537,13.518,30.0]
[1672844542644,30.0,13.537,13.518,85.53]
[1672844543313,30.0,13.537,13.519,30.0]
[1672844543500,55.46,13.536,13.519,30.0]
[1672844543711,30.0,13.537,13.519,30.0]
[1672844544351,85.44,13.539,13.519,30.0]
[1672844544559,55.44,13.54,13.52,55.52]
[1672844544766,30.0,13.549,13.52,55.52]
[1672844544988,78.48,13.54,13.525,263.7]
[1672844545196,30.0,13.549,13.527,30.0]
[1672844545725,55.41,13.547,13.527,30.0]
[1672844546249,15.68,13.54,13.527,30.0]
[1672844547506,15.68,13.54,13.526,110.7194]
[1672844548026,78.52,13.54,13.525,263.7]
[1672844548240,85.44,13.539,13.525,263.7]
[1672844548441,85.44,13.539,13.526,30.0]
[1672844548652,78.52,13.54,13.526,30.0]
[1672844548860,15.68,13.54,13.526,30.0]
[1672844549502,12.73702313,13.54,13.526,30.0]
[1672844550668,12.73702313,13.54,13.527,55.49]
[1672844550982,30.0,13.546,13.527,55.49]
[1672844551193,55.4,13.549,13.528,30.0]
[1672844551388,55.4,13.549,13.529,55.49]
[1672844551803,55.38,13.554,13.528,85.49]
[1672844552019,55.37,13.558,13.528,85.49]
[1672844552238,30.0,13.557,13.529,30.0]
[1672844552430,55.38,13.556,13.53,55.48]
[1672844552642,55.37,13.558,13.53,55.48]
[1672844553086,55.37,13.558,13.531,30.0]
[1672844553087,30.0,13.557,13.531,30.0]
[1672844553297,55.38,13.556,13.532,55.47]
[1672844553829,85.36,13.559,13.532,55.47]
[1672844554018,85.36,13.559,13.533,30.0]
[1672844554229,30.0,13.559,13.534,55.47]
[1672844554441,85.36,13.559,13.534,55.47]
[1672844554759,78.56,13.58,13.535,30.0]
[1672844554965,78.39,13.57,13.536,55.46]
[1672844555296,15.56,13.56,13.537,147.755]
[1672844555503,78.4,13.56,13.538,55.45]
[1672844555701,15.71,13.56,13.538,55.45]
[1672844555906,78.53,13.55,13.538,55.45]
[1672844556252,78.38,13.55,13.537,147.755]
[1672844557596,78.38,13.55,13.532,55.47]
[1672844557813,15.71,13.54,13.529,95.5974]
[1672844558022,15.71,13.54,13.529,24.0294]
[1672844560346,78.55,13.54,13.529,24.0294]
[1672844560560,78.66,13.54,13.525,263.7]
[1672844560773,85.45,13.539,13.525,263.7]
[1672844562009,55.45,13.539,13.526,30.0]
[1672844562553,55.45,13.539,13.525,263.7]
[1672844563098,30.0,13.538,13.525,263.7]
[1672844566015,78.55,13.54,13.525,263.7]
[1672844566546,78.55,13.54,13.526,30.0]
[1672844567913,78.55,13.54,13.525,263.7]
[1672844567914,30.0,13.539,13.525,263.7]
[1672844568312,55.45,13.538,13.525,263.7]
[1672844568633,30.0,13.537,13.525,263.7]
[1672844569698,55.46,13.536,13.514,55.55]
[1672844569893,30.0,13.529,13.513,55.55]
[1672844570109,15.6,13.53,13.512,23.7522]
[1672844570322,15.6,13.53,13.513,55.55]
[1672844570541,15.6,13.53,13.514,30.0]
[1672844570747,15.6,13.53,13.515,55.54]
[1672844570961,78.48,13.53,13.515,55.54]
[1672844571159,78.48,13.53,13.512,55.56]
[1672844571580,78.48,13.53,13.511,30.0]
[1672844572104,78.41,13.54,13.512,55.56]
[1672844572313,78.41,13.54,13.514,437.67743675]
[1672844572527,78.41,13.54,13.515,169.4296]
[1672844572738,15.64,13.53,13.515,169.4296]
[1672844572945,15.64,13.53,13.516,30.0]
[1672844573164,15.64,13.53,13.518,30.0]
[1672844573674,15.64,13.53,13.519,55.53]
[1672844573903,15.64,13.53,13.518,30.0]
[1672844574720,15.64,13.53,13.518,293.7]
[1672844575695,30.0,13.539,13.519,55.53]
[1672844575903,30.0,13.539,13.52,30.0]
[1672844576219,30.0,13.539,13.522,30.0]
[1672844577487,30.0,13.539,13.52,30.0]
[1672844577680,85.45,13.539,13.518,263.7]
[1672844577890,30.0,13.538,13.518,263.7]
[1672844578104,55.45,13.537,13.518,263.7]
[1672844578302,15.71,13.53,13.518,263.7]
[1672844578736,15.71,13.53,13.519,30.0]
[1672844579483,15.71,13.53,13.518,263.7]
[1672844580090,78.71,13.53,13.518,263.7]
[1672844582010,78.71,13.53,13.515,218.453]
[1672844582331,78.71,13.53,13.515,49.0234]
[1672844582332,48.70320453,13.529,13.515,49.0234]
[1672844582524,48.70320453,13.529,13.511,55.56]
[1672844582742,30.0,13.528,13.511,55.56]
[1672844583475,30.0,13.534,13.511,55.56]
[1672844583699,30.0,13.538,13.512,30.0]
[1672844583896,30.0,13.538,13.513,55.55]
[1672844584306,78.44,13.54,13.514,1256.5]
[1672844584527,54.3431,13.548,13.515,55.54]
[1672844584739,54.3431,13.548,13.517,30.0]
[1672844584954,54.3431,13.548,13.516,827.3]
[1672844584955,15.69,13.54,13.518,882.83]
[1672844585164,15.69,13.54,13.519,30.0]
[1672844585360,15.69,13.54,13.52,55.52]
[1672844585690,78.67,13.54,13.521,30.0]
[1672844585891,15.72,13.54,13.522,55.51]
[1672844586092,15.72,13.54,13.523,30.0]
[1672844586305,78.56,13.54,13.524,55.51]
[1672844586834,30.0,13.539,13.524,55.51]
[1672844587044,30.0,13.539,13.523,55.51]
[1672844587252,78.55,13.53,13.522,115.2849]
[1672844587467,15.71,13.53,13.519,46.6601]
[1672844587678,78.55,13.53,13.516,52.9527]
[1672844587887,78.55,13.53,13.516,108.4927]
[1672844588098,30.0,13.538,13.516,108.4927]
[1672844588309,78.56,13.54,13.517,827.3]
[1672844588310,15.72,13.54,13.517,827.3]
[1672844588530,15.72,13.54,13.519,30.0]
[1672844588738,15.72,13.54,13.52,55.52]
[1672844588952,85.42,13.546,13.52,55.52]
[1672844589160,30.0,13.546,13.521,30.0]
[1672844589479,30.0,13.546,13.522,55.51]
[1672844589682,30.0,13.546,13.523,30.0]
[1672844589896,15.71,13.54,13.524,55.51]
[1672844590105,15.71,13.54,13.526,30.0]
[1672844590318,15.71,13.54,13.527,55.49]
[1672844590930,78.55,13.54,13.525,110.4229]
[1672844591147,78.71,13.54,13.523,454.71]
[1672844591368,15.71,13.53,13.523,399.2]
[1672844591694,78.5,13.53,13.523,399.2]
[1672844592087,78.5,13.53,13.501,102.7936]
[1672844592088,30.0,13.529,13.501,102.7936]
[1672844592298,15.55,13.52,13.502,110.4229]
[1672844592511,15.55,13.52,13.503,55.59]
[1672844592720,15.55,13.52,13.504,30.0]
[1672844592934,30.0,13.528,13.505,55.58]
[1672844593142,30.0,13.528,13.505,103.8467]
[1672844593805,30.0,13.528,13.505,48.2667]
[1672844594006,30.0,13.526,13.505,48.2667]
[1672844594218,15.67,13.52,13.505,48.2667]
[1672844595033,30.0,13.524,13.506,55.58]
[1672844598515,15.55,13.52,13.506,55.58]
[1672844600806,15.55,13.52,13.505,48.2667]
[1672844602291,78.44,13.52,13.505,48.2667]
[1672844602505,30.0,13.519,13.505,48.2667]
[1672844604081,30.0,13.519,13.506,55.58]
[1672844604735,30.0,13.519,13.505,48.2667]
[1672844605783,30.0,13.519,13.506,55.58]
[1672844608916,30.0,13.522,13.506,55.58]
[1672844609338,30.0,13.522,13.505,48.2667]
[1672844609339,15.62,13.52,13.505,48.2667]
[1672844609779,30.0,13.522,13.506,55.58]
[1672844611038,15.52,13.52,13.505,48.2667]
[1672844611251,30.0,13.522,13.506,55.58]
[1672844611451,30.0,13.522,13.507,30.0]
[1672844611663,30.0,13.522,13.506,55.58]
[1672844612071,15.58,13.52,13.505,48.2667]
[1672844612714,78.21,13.52,13.505,48.2667]
[1672844613150,55.53,13.519,13.505,48.2667]
[1672844613348,30.0,13.518,13.505,48.2667]
[1672844613978,30.0,13.518,13.492,55.64]
[1672844614185,30.0,13.518,13.493,118.6606]
[1672844614186,15.61,13.51,13.493,118.6606]
[1672844614925,55.57,13.509,13.482,55.68]
[1672844615138,30.0,13.508,13.483,189.5367]
[1672844615338,30.0,13.508,13.485,30.0]
[1672844615547,30.0,13.508,13.486,55.66]
[1672844616304,30.0,13.508,13.486,319.36]
[1672844616514,15.64,13.5,13.487,30.0]
[1672844616724,15.64,13.5,13.488,55.65]
[1672844617459,15.64,13.5,13.486,55.66]
[1672844617652,78.26,13.5,13.485,55.67]
[1672844617863,78.26,13.5,13.484,55.67]
[1672844618091,30.0,13.499,13.483,245.2167]
[1672844618493,15.64,13.49,13.483,189.5367]
[1672844618696,15.64,13.49,13.472,55.72]
[1672844618909,15.64,13.49,13.473,125.68186537]
[1672844619127,15.64,13.49,13.474,55.71]
[1672844619336,15.64,13.49,13.474,30.0]
[1672844619549,15.64,13.49,13.475,55.71]
[1672844619972,78.28,13.49,13.475,55.71]
[1672844620167,78.28,13.49,13.476,30.0]
[1672844620381,15.61,13.49,13.477,55.7]
[1672844621538,15.61,13.49,13.478,30.0]
[1672844621752,30.0,13.498,13.479,55.69]
[1672844621963,30.0,13.499,13.48,117.4613]
[1672844622176,30.0,13.499,13.481,85.68]
[1672844622927,30.0,13.499,13.481,30.0]
[1672844623531,78.2,13.5,13.481,30.0]
[1672844623861,78.2,13.5,13.481,85.68]
[1672844624274,30.0,13.499,13.481,85.68]
[1672844624915,78.2,13.5,13.481,85.68]
[1672844625327,15.64,13.5,13.482,30.0]
[1672844625678,15.64,13.5,13.483,55.68]
[1672844626179,78.02,13.5,13.483,55.68]
[1672844626371,30.0,13.499,13.481,55.68]
[1672844626583,85.61,13.499,13.48,381.1613]
[1672844627649,78.02,13.5,13.48,381.1613]
[1672844627857,108.17,13.51,13.481,30.0]
[1672844628050,108.17,13.51,13.482,55.68]
[1672844628259,15.64,13.5,13.483,30.0]
[1672844628601,78.3,13.5,13.482,55.68]
[1672844628907,30.0,13.499,13.481,30.0]
[1672844629119,15.52,13.49,13.48,436.8513]
[1672844629331,15.52,13.49,13.48,117.4613]
[1672844629522,15.52,13.49,13.48,173.1513]
[1672844629732,30.0,13.499,13.48,173.1513]
[1672844629943,15.61,13.5,13.48,173.1513]
[1672844630163,30.0,13.502,13.481,30.0]
[1672844630366,30.0,13.502,13.482,55.68]
[1672844631304,30.0,13.502,13.483,30.0]
[1672844631517,30.0,13.502,13.484,55.67]
[1672844631958,15.64,13.5,13.484,55.67]
[1672844632155,15.64,13.5,13.485,30.0]
[1672844632368,15.64,13.5,13.486,55.66]
[1672844633099,30.0,13.506,13.487,30.0]
[1672844633320,30.0,13.506,13.488,55.65]
[1672844634161,108.17,13.51,13.489,30.0]
[1672844634373,108.17,13.51,13.49,55.65]
[1672844634783,45.61,13.51,13.491,30.0]
[1672844634998,45.61,13.51,13.492,55.64]
[1672844636277,15.61,13.51,13.493,827.3]
[1672844636480,24.5278,13.511,13.494,55.63]
[1672844637006,15.53,13.51,13.494,55.63]
[1672844637201,15.53,13.51,13.495,30.0]
[1672844637412,15.53,13.51,13.496,55.62]
[1672844637844,78.19,13.51,13.496,55.62]
[1672844638044,30.0,13.509,13.496,55.62]
[1672844638244,78.19,13.51,13.496,55.62]
[1672844638461,15.71,13.51,13.497,30.0]
[1672844638684,15.71,13.51,13.498,55.61]
[1672844638891,45.71,13.51,13.498,55.61]
[1672844639301,45.71,13.51,13.495,30.0]
[1672844639302,45.71,13.51,13.497,30.0]
[1672844639503,15.71,13.51,13.497,30.0]
[1672844640468,24.5278,13.511,13.497,30.0]
[1672844640702,24.5278,13.511,13.499,30.0]
[1672844641936,24.5278,13.511,13.5,55.61]
[1672844642143,24.5278,13.511,13.501,30.0]
[1672844642348,24.5278,13.511,13.502,55.6]
[1672844642562,24.5278,13.511,13.503,827.3]
[1672844642775,24.5278,13.511,13.504,55.59]
[1672844642973,24.5278,13.511,13.505,827.3]
[1672844643199,24.5278,13.511,13.506,85.58]
[1672844643395,24.5278,13.511,13.506,912.88]
[1672844643613,24.5278,13.511,13.506,857.3]
[1672844643940,24.5278,13.511,13.506,827.3]
[1672844644347,24.5278,13.511,13.498,55.61]
[1672844644788,15.48,13.51,13.498,55.61]
[1672844644999,15.48,13.51,13.499,30.0]
[1672844646045,15.48,13.51,13.495,30.0]
[1672844646262,15.48,13.51,13.493,30.0]
[1672844646263,78.04,13.51,13.496,55.62]
[1672844646573,30.0,13.509,13.49,30.0]
[1672844646789,85.57,13.509,13.49,30.0]
[1672844647002,30.0,13.509,13.49,30.0]
[1672844647405,30.0,13.509,13.491,55.64]
[1672844647825,24.5278,13.511,13.491,55.64]
[1672844648041,24.5278,13.511,13.492,30.0]
[1672844648252,24.5278,13.511,13.493,55.63]
[1672844648883,30.0,13.509,13.493,55.63]
[1672844649107,30.0,13.509,13.49,30.0]
[1672844649108,30.0,13.509,13.491,55.64]